[Event "Krakow Championship-B 2022"]
[Site "Krakow"]
[Date "2022.06.27"]
[Round "4.6"]
[White "Palacki, Rafal"]
[Black "Maciejewski, Kamil"]
[Result "1/2-1/2"]
[ECO "C55"]
[WhiteElo "1810"]
[BlackElo "1939"]
[Annotator "NA RC"]
[PlyCount "103"]
[EventDate "2022.06.25"]
[EventType "swiss"]
[EventCountry "POL"]
[SourceTitle "playchess.com"]
[Source "ChessBase"]
[SourceQuality "1"]
[TimeControl "40/5400+30:1800+30"]

1. e4 {[%emt 0:00:04]} e5 {[%emt 0:00:42]} 2. Nf3 {[%emt 0:00:18]} Nc6 {[%emt 0:00:00]} 3. Bc4 {[%emt 0:00:08]} Nf6 {[%emt 0:00:00]} 4. d3 {[%emt 0:00:25]} Be7 {[%emt 0:00:21]} 5. O-O {[%emt 0:00:17]} O-O {[%emt 0:00:44]} 6. Re1 {[%emt 0:00:12]} d6 {[%emt 0:00:21]} 7. a4 {[%emt 0:00:14]} Na5 {[%emt 0:00:34]} 8. Ba2 {[%emt 0:00:06]} c5 {[%emt 0:00:16]} 9. c3 {[%emt 0:00:06]} Nc6 {[%emt 0:01:07]} 10. Na3 {[%emt 0:02:06]} a6 {[%emt 0:05:50]} 11. Bd2 {[%emt 0:03:48]} Rb8 {[%emt 0:08:57]} 12. Nc2 {[%emt 0:04:23]} b5 {[%emt 0:08:07]} 13. axb5 {[%emt 0:00:28]} axb5 {[%emt 0:01:50]} 14. b4 {[%emt 0:00:39]} cxb4 {[%emt 0:16:24]} 15. Nxb4 {[%emt 0:01:23]} Nxb4 {[%emt 0:06:07]} 16. cxb4 {[%emt 0:00:47]} Bb7 {[%emt 0:03:46]} 17. Qb3 {[%emt 0:09:17]} Qd7 {[%emt 0:07:16]} 18. h3 {[%emt 0:10:45]} h6 {[%emt 0:04:50]} 19. Bc3 {[%emt 0:07:19]} Bd8 {[%emt 0:03:25]} 20. Rac1 {[%emt 0:03:17]} Bb6 {[%emt 0:01:21]} 21. Nh4 {[%emt 0:14:01]} Kh7 {[%emt 0:05:06]} 22. Qd1 {[%emt 0:02:47]} Ra8 {[%emt 0:02:28]} 23. Bb1 {[%emt 0:01:56]} Qe6 {[%emt 0:02:56]} 24. Qf3 {[%emt 0:09:02]} Rfc8 {[%emt 0:03:06]} 25. d4 {[%emt 0:03:02]} Ra3 {[%emt 0:02:15]} 26. d5 {[%emt 0:04:58]} Qd7 {[%emt 0:00:46]} 27. Rc2 {[%emt 0:00:17]} Rc4 {[%emt 0:04:11]} 28. Ba2 {[%emt 0:07:55]} Rcxc3 {[%emt 0:01:14]} 29. Rxc3 {[%emt 0:00:07]} Rxa2 {[%emt 0:00:04]} 30. Re2 {[%emt 0:00:09]} Ra1+ {[%emt 0:02:59]} 31. Kh2 {[%emt 0:00:09]} Bd4 {[%emt 0:00:55]} 32. Ra3 {[%emt 0:02:08]} Rb1 {[%emt 0:01:06]} 33. Rb3 {[%emt 0:00:20]} Rxb3 {[%emt 0:01:01]} 34. Qxb3 {[%emt 0:00:06]} g6 {[%emt 0:00:57]} 35. Qd3 {[%emt 0:00:46]} Nh5 {[%emt 0:01:15]} 36. Rc2 {[%emt 0:02:08]} Nf4 {[%emt 0:00:49]} 37. Qg3 {[%emt 0:03:18]} Bb6 {[%emt 0:01:11]} 38. Nf3 {[%emt 0:03:34]} Nh5 {[%emt 0:01:18]} 39. Qh4 {[%emt 0:01:34]} Bd8 {[%emt 0:01:02]} 40. Qg4 {[%emt 0:00:09]} Qxg4 {[%emt 0:03:03]} 41. hxg4 {[%emt 0:30:05]} Nf6 {[%emt 0:30:19]} 42. Nd2 {[%emt 0:00:13]} Nxg4+ {[%emt 0:00:00]} 43. Kg3 {[%emt 0:00:00]} Nf6 {[%emt 0:00:00]} 44. f3 {[%emt 0:00:00]} Nh5+ {[%emt 0:00:00]} 45. Kh2 {[%emt 0:00:00]} Nf4 {[%emt 0:00:00]} 46. Ra2 {[%emt 0:00:00]} Bb6 {[%emt 0:00:00]} 47. Ra3 {[%emt 0:00:00]} Ne2 {[%emt 0:00:00]} 48. Nb3 {[%emt 0:00:00]} Nd4 {[%emt 0:00:00]} 49. Na5 {[%emt 0:00:00]} Bc8 {[%emt 0:01:03]} 50. Nc6 {[%emt 0:00:00]} Bb7 {[%emt 0:00:48]} 51. Na5 {[%emt 0:00:00]} Bc8 {[%emt 0:01:09]} 52. Nc6 {[%emt 0:00:00]} 1/2-1/2

[Event "Krakow Championship-B 2022"]
[Site "Krakow"]
[Date "2022.06.27"]
[Round "4.7"]
[White "Moeller, Hannah"]
[Black "Cichon, Jakub"]
[Result "0-1"]
[ECO "A05"]
[WhiteElo "1833"]
[BlackElo "1884"]
[Annotator "NA RC"]
[PlyCount "85"]
[EventDate "2022.06.25"]
[EventType "swiss"]
[EventCountry "POL"]
[SourceTitle "playchess.com"]
[Source "ChessBase"]
[SourceQuality "1"]
[TimeControl "40/5400+30:1800+30"]

1. Nf3 {[%emt 0:00:02]} Nf6 {[%emt 0:00:37]} 2. g3 {[%emt 0:00:06]} d5 {[%emt 0:00:23]} 3. Bg2 {[%emt 0:00:15]} c5 {[%emt 0:00:33]} 4. c4 {[%emt 0:00:42]} Nc6 {[%emt 0:11:33]} 5. O-O {[%emt 0:03:04]} e5 {[%emt 0:02:08]} 6. cxd5 {[%emt 0:00:41]} Nxd5 {[%emt 0:00:21]} 7. d3 {[%emt 0:00:12]} Be7 {[%emt 0:01:31]} 8. a3 {[%emt 0:00:57]} Be6 {[%emt 0:01:14]} 9. Nc3 {[%emt 0:00:16]} O-O {[%emt 0:02:26]} 10. Bd2 {[%emt 0:00:52]} h6 {[%emt 0:08:26]} 11. Rc1 {[%emt 0:04:07]} Rc8 {[%emt 0:02:44]} 12. Nxd5 {[%emt 0:20:30]} Bxd5 {[%emt 0:01:06]} 13. Bc3 {[%emt 0:00:07]} Nd4 {[%emt 0:12:41]} 14. Nxe5 {[%emt 0:06:38]} Bxg2 {[%emt 0:02:19]} 15. Kxg2 {[%emt 0:00:09]} Qd5+ {[%emt 0:00:54]} 16. Nf3 {[%emt 0:00:07]} Nxf3 {[%emt 0:01:05]} 17. exf3 {[%emt 0:00:06]} Bg5 {[%emt 0:32:51]} 18. Rb1 {[%emt 0:02:32]} Rfd8 {[%emt 0:02:26]} 19. Qa4 {[%emt 0:02:08]} Rc6 {[%emt 0:01:57]} 20. Rbd1 {[%emt 0:02:24]} a6 {[%emt 0:01:59]} 21. Qc4 {[%emt 0:02:47]} Rcd6 {[%emt 0:02:33]} 22. Qxd5 {[%emt 0:02:44]} Rxd5 {[%emt 0:01:24]} 23. f4 {[%emt 0:00:06]} Bf6 {[%emt 0:00:34]} 24. Bxf6 {[%emt 0:00:35]} gxf6 {[%emt 0:00:04]} 25. Rfe1 {[%emt 0:02:52]} Rxd3 {[%emt 0:01:02]} 26. Rxd3 {[%emt 0:00:47]} Rxd3 {[%emt 0:00:03]} 27. Re3 {[%emt 0:02:26]} Rd2 {[%emt 0:01:48]} 28. b3 {[%emt 0:01:40]} Rb2 {[%emt 0:03:55]} 29. a4 {[%emt 0:04:03]} Kf8 {[%emt 0:02:12]} 30. Rc3 {[%emt 0:00:54]} Ke7 {[%emt 0:01:25]} 31. Kf3 {[%emt 0:04:09]} Kd6 {[%emt 0:00:04]} 32. g4 {[%emt 0:06:55]} b5 {[%emt 0:00:35]} 33. axb5 {[%emt 0:00:46]} axb5 {[%emt 0:00:04]} 34. h3 {[%emt 0:02:26]} Kd5 {[%emt 0:00:53]} 35. Rd3+ {[%emt 0:01:30]} Kc6 {[%emt 0:00:03]} 36. Ke3 {[%emt 0:05:05]} c4 {[%emt 0:01:49]} 37. bxc4 {[%emt 0:01:24]} bxc4 {[%emt 0:00:01]} 38. Rd2 {[%emt 0:02:19]} Rxd2 {[%emt 0:00:33]} 39. Kxd2 {[%emt 0:00:06]} Kd5 {[%emt 0:00:12]} 40. Kc3 {[%emt 0:03:42]} Ke4 {[%emt 0:01:01]} 41. f5 {[%emt 0:32:21]} Kf3 {[%emt 0:04:42]} 42. Kxc4 {[%emt 0:00:00]} Kxf2 {[%emt 0:01:11]} 43. Kd4 0-1

[Event "Krakow Championship-B 2022"]
[Site "Krakow"]
[Date "2022.06.27"]
[Round "4.8"]
[White "Hnatyshyn, Anastasiia"]
[Black "Karut, Kacper"]
[Result "1/2-1/2"]
[ECO "E65"]
[WhiteElo "1890"]
[BlackElo "1775"]
[Annotator "NA RC"]
[PlyCount "144"]
[EventDate "2022.06.25"]
[EventType "swiss"]
[EventCountry "POL"]
[SourceTitle "playchess.com"]
[Source "ChessBase"]
[SourceQuality "1"]
[TimeControl "40/5400+30:1800+30"]

1. d4 {[%emt 0:00:03]} Nf6 {[%emt 0:00:24]} 2. c4 {[%emt 0:00:06]} g6 {[%emt 0:00:08]} 3. Nf3 {[%emt 0:00:22]} Bg7 {[%emt 0:00:08]} 4. g3 {[%emt 0:00:20]} O-O {[%emt 0:00:36]} 5. Bg2 {[%emt 0:00:08]} d6 {[%emt 0:00:33]} 6. O-O {[%emt 0:00:21]} c5 {[%emt 0:04:30]} 7. Nc3 {[%emt 0:04:22]} Nc6 {[%emt 0:05:01]} 8. e3 {[%emt 0:02:45]} Rb8 {[%emt 0:03:39]} 9. b3 {[%emt 0:05:10]} Bg4 {[%emt 0:06:29]} 10. h3 {[%emt 0:09:13]} Bd7 {[%emt 0:07:34]} 11. Bb2 {[%emt 0:02:59]} a6 {[%emt 0:03:00]} 12. dxc5 {[%emt 0:05:57]} dxc5 {[%emt 0:00:42]} 13. Na4 {[%emt 0:00:10]} b6 {[%emt 0:04:45]} 14. Ne5 {[%emt 0:06:16]} Qc7 {[%emt 0:01:25]} 15. Nxd7 {[%emt 0:04:50]} Nxd7 {[%emt 0:01:24]} 16. Nc3 {[%emt 0:00:28]} Nf6 {[%emt 0:09:20]} 17. Qe2 {[%emt 0:03:29]} e6 {[%emt 0:05:17]} 18. Rfd1 {[%emt 0:03:52]} Rfd8 {[%emt 0:04:20]} 19. Rac1 {[%emt 0:06:37]} Ne7 {[%emt 0:07:31]} 20. a3 {[%emt 0:05:11]} Rxd1+ {[%emt 0:04:45]} 21. Rxd1 {[%emt 0:00:15]} Rd8 {[%emt 0:00:37]} 22. Rd2 {[%emt 0:10:23]} Rxd2 {[%emt 0:01:41]} 23. Qxd2 {[%emt 0:00:02]} Qd7 {[%emt 0:01:49]} 24. Qe2 {[%emt 0:00:56]} Ne8 {[%emt 0:04:49]} 25. Kh2 {[%emt 0:04:02]} f5 {[%emt 0:02:35]} 26. Na4 {[%emt 0:01:34]} Bxb2 {[%emt 0:01:01]} 27. Qxb2 {[%emt 0:00:33]} Qd6 {[%emt 0:00:42]} 28. b4 {[%emt 0:01:53]} cxb4 {[%emt 0:02:55]} 29. axb4 {[%emt 0:00:50]} b5 {[%emt 0:04:12]} 30. c5 {[%emt 0:01:08]} Qc7 {[%emt 0:00:30]} 31. Nc3 {[%emt 0:00:47]} Nc6 {[%emt 0:03:58]} 32. Qb3 {[%emt 0:04:27]} Qd7 {[%emt 0:02:43]} 33. Ne2 {[%emt 0:05:32]} Nc7 {[%emt 0:01:18]} 34. Nf4 {[%emt 0:00:42]} Kf7 {[%emt 0:01:48]} 35. Nd3 {[%emt 0:00:38]} Nd5 {[%emt 0:02:20]} 36. e4 {[%emt 0:02:01]} fxe4 {[%emt 0:00:52]} 37. Bxe4 {[%emt 0:00:08]} a5 {[%emt 0:00:30]} 38. bxa5 {[%emt 0:00:40]} Nxa5 {[%emt 0:01:37]} 39. Ne5+ {[%emt 0:00:50]} Ke8 {[%emt 0:01:54]} 40. Qf3 {[%emt 0:06:22]} Qg7 {[%emt 0:00:20]} 41. Ng4 {[%emt 0:32:14]} h5 {[%emt 0:11:48]} 42. Ne3 {[%emt 0:00:00]} Qf7 {[%emt 0:08:24]} 43. Qxf7+ {[%emt 0:00:00]} Kxf7 {[%emt 0:00:07]} 44. Nxd5 {[%emt 0:00:00]} exd5 {[%emt 0:00:32]} 45. Bxd5+ {[%emt 0:00:00]} Kf6 {[%emt 0:03:08]} 46. c6 {[%emt 0:00:00]} Ke7 {[%emt 0:00:16]} 47. h4 {[%emt 0:00:00]} Nc4 {[%emt 0:05:16]} 48. Be4 {[%emt 0:00:00]} Ne5 {[%emt 0:00:57]} 49. f4 {[%emt 0:00:00]} Ng4+ {[%emt 0:00:03]} 50. Kg1 {[%emt 0:00:00]} b4 {[%emt 0:03:09]} 51. Bxg6 {[%emt 0:00:00]} Nf6 {[%emt 0:00:40]} 52. Kf2 {[%emt 0:00:00]} b3 {[%emt 0:01:24]} 53. Ke3 {[%emt 0:00:00]} Kd6 {[%emt 0:00:40]} 54. Kd4 {[%emt 0:00:00]} b2 {[%emt 0:00:51]} 55. Kc3 {[%emt 0:00:00]} Kxc6 {[%emt 0:00:08]} 56. Kxb2 {[%emt 0:00:00]} Kd5 {[%emt 0:00:52]} 57. Kc3 {[%emt 0:00:00]} Kc5 {[%emt 0:00:22]} 58. Kd3 {[%emt 0:00:00]} Kd5 {[%emt 0:00:10]} 59. Bf7+ {[%emt 0:00:00]} Kc5 {[%emt 0:00:11]} 60. Ke3 {[%emt 0:00:18]} Kd6 {[%emt 0:00:47]} 61. Kd4 {[%emt 0:00:19]} Ke7 {[%emt 0:00:20]} 62. Bg6 {[%emt 0:00:37]} Kd6 {[%emt 0:00:11]} 63. Bd3 {[%emt 0:01:29]} Ke6 {[%emt 0:00:45]} 64. Bg6 {[%emt 0:00:23]} Kd6 {[%emt 0:00:22]} 65. f5 {[%emt 0:00:09]} Kd7 {[%emt 0:01:21]} 66. Ke5 {[%emt 0:02:00]} Ke7 {[%emt 0:00:07]} 67. Kf4 {[%emt 0:00:42]} Kf8 {[%emt 0:00:36]} 68. Ke5 {[%emt 0:06:08]} Ke7 {[%emt 0:00:06]} 69. Bxh5 {[%emt 0:00:31]} Nxh5 {[%emt 0:00:06]} 70. g4 {[%emt 0:00:06]} Ng3 {[%emt 0:00:11]} 71. h5 {[%emt 0:00:47]} Kf7 {[%emt 0:00:55]} 72. h6 {[%emt 0:00:16]} Ne2 {[%emt 0:02:03]} 1/2-1/2

[Event "Krakow Championship-B 2022"]
[Site "Krakow"]
[Date "2022.06.27"]
[Round "4.9"]
[White "Cattaruzzo, Nicolo`"]
[Black "Cwiek, Ryszard"]
[Result "1/2-1/2"]
[ECO "D30"]
[WhiteElo "1744"]
[BlackElo "1880"]
[Annotator "NA RC"]
[PlyCount "196"]
[EventDate "2022.06.25"]
[EventType "swiss"]
[EventCountry "POL"]
[SourceTitle "playchess.com"]
[Source "ChessBase"]
[SourceQuality "1"]
[TimeControl "40/5400+30:1800+30"]

1. d4 {[%emt 0:02:45]} d5 {[%emt 0:00:36]} 2. c4 {[%emt 0:00:40]} e6 {[%emt 0:00:08]} 3. Nf3 {[%emt 0:00:29]} Nf6 {[%emt 0:00:06]} 4. g3 {[%emt 0:01:19]} b6 {[%emt 0:01:39]} 5. Bg2 {[%emt 0:01:39]} Bb7 {[%emt 0:00:06]} 6. O-O {[%emt 0:01:31]} Be7 {[%emt 0:00:37]} 7. Qa4+ {[%emt 0:04:47] 7.cxd5 is a critical line.} Bc6 {[%emt 0:03:19]} 8. Qc2 {[%emt 0:00:57]} O-O {[%emt 0:09:59]} 9. Ne5 {[%emt 0:02:55]} Bb7 {[%emt 0:00:07]} 10. cxd5 {[%emt 0:02:32]} exd5 {[%emt 0:02:28] [#]} 11. Be3 $146 {[%emt 0:04:00]} ({Predecessor:} 11. Rd1 Nfd7 12. Nd3 Re8 13. Nc3 Nf6 14. Nf4 c6 15. a3 Nbd7 16. b4 Rc8 17. Qd3 Nf8 18. Bb2 {½-½ (38) Sipila,M-Alkkiomaki,J Heinola 2002}) 11... Na6 {[%emt 0:12:53]} 12. a3 {[%emt 0:11:13]} c5 {[%emt 0:06:24]} 13. Rd1 {[%emt 0:05:23]} Bd6 {[%emt 0:06:48]} 14. Nc3 {[%emt 0:08:29]} Qe7 {[%emt 0:09:19]} 15. Nf3 {[%emt 0:16:44]} Nc7 {[%emt 0:08:07]} 16. Nh4 {[%emt 0:06:45]} Ng4 {[%emt 0:20:37]} 17. Nf5 {[%emt 0:02:42]} Qf6 {[%emt 0:02:52]} 18. Bc1 {[%emt 0:04:34]} cxd4 {[%emt 0:05:15]} 19. Rxd4 {[%emt 0:02:41]} Nxf2 {[%emt 0:05:29]} 20. Rh4 {[%emt 0:05:43]} Ne4 {[%emt 0:01:56]} 21. Nxd6 {[%emt 0:01:33]} Qxd6 {[%emt 0:00:10]} 22. Nxe4 {[%emt 0:00:14]} dxe4 {[%emt 0:00:15]} 23. Bf4 {[%emt 0:00:13]} Qd7 {[%emt 0:01:20]} 24. Qxc7 {[%emt 0:00:54]} Qxc7 {[%emt 0:00:21]} 25. Bxc7 {[%emt 0:00:08]} f5 {[%emt 0:00:53]} 26. g4 {[%emt 0:01:32]} Rf7 {[%emt 0:00:26]} 27. Be5 {[%emt 0:01:13]} Re8 {[%emt 0:00:33]} 28. Bc3 {[%emt 0:01:02]} f4 {[%emt 0:00:17]} 29. Rf1 {[%emt 0:02:16]} f3 {[%emt 0:01:14]} 30. exf3 {[%emt 0:03:40]} exf3 {[%emt 0:00:01]} 31. Bh3 {[%emt 0:01:25]} Ba6 {[%emt 0:01:09]} 32. g5 {[%emt 0:02:28]} Bxf1 {[%emt 0:00:16]} 33. Bxf1 {[%emt 0:00:32]} Rf5 {[%emt 0:00:36]} 34. Bc4+ {[%emt 0:00:26]} Kh8 {[%emt 0:00:11]} 35. g6 {[%emt 0:00:29]} Rg5+ {[%emt 0:00:36]} 36. Kf2 {[%emt 0:00:25]} Rg2+ {[%emt 0:00:24]} 37. Kxf3 {[%emt 0:00:15]} Rxg6 {[%emt 0:00:03]} 38. Bd3 {[%emt 0:00:58]} Rf8+ {[%emt 0:00:12]} 39. Ke3 {[%emt 0:00:43]} Re6+ {[%emt 0:00:09]} 40. Kd2 {[%emt 0:01:15]} Rf2+ {[%emt 0:02:01]} 41. Kc1 {[%emt 0:02:38]} h6 {[%emt 0:03:15]} 42. Rd4 {[%emt 0:06:08]} Re8 {[%emt 0:00:47]} 43. Rd7 {[%emt 0:02:28]} Rg2 {[%emt 0:01:13]} 44. Kb1 {[%emt 0:02:58]} h5 {[%emt 0:03:20]} 45. h4 {[%emt 0:03:04]} Rg4 {[%emt 0:02:37]} 46. Bc2 {[%emt 0:01:33]} a5 {[%emt 0:01:49]} 47. a4 {[%emt 0:02:02]} Rc8 {[%emt 0:01:07]} 48. Ka2 {[%emt 0:02:15]} Rg2 {[%emt 0:00:12]} 49. Kb3 {[%emt 0:00:46]} b5 {[%emt 0:00:43]} 50. Be4 {[%emt 0:03:44]} bxa4+ {[%emt 0:03:16]} 51. Ka3 {[%emt 0:00:31]} Rg3 {[%emt 0:00:32]} 52. Rd5 {[%emt 0:03:34]} Rcxc3+ {[%emt 0:03:51]} 53. bxc3 {[%emt 0:00:09]} Rxc3+ {[%emt 0:00:04]} 54. Kb2 {[%emt 0:00:50]} Rb3+ {[%emt 0:00:04]} 55. Ka2 {[%emt 0:00:22]} g6 {[%emt 0:00:05]} 56. Bxg6 {[%emt 0:01:02]} Rb4 {[%emt 0:01:24]} 57. Rxh5+ {[%emt 0:00:28]} Kg7 {[%emt 0:00:04]} 58. Bb1 {[%emt 0:00:57]} a3 {[%emt 0:02:50]} 59. Rg5+ {[%emt 0:01:02]} Kh6 {[%emt 0:00:40]} 60. Rxa5 {[%emt 0:01:32]} Rxh4 {[%emt 0:00:16]} 61. Rxa3 {[%emt 0:00:28]} Rh2+ {[%emt 0:00:19]} 62. Ka1 {[%emt 0:00:19]} Kg5 {[%emt 0:00:12]} 63. Rf3 {[%emt 0:00:21]} Rd2 {[%emt 0:00:55]} 64. Ba2 {[%emt 0:01:16]} Rh2 {[%emt 0:01:05]} 65. Bb3 {[%emt 0:00:21]} Kg4 {[%emt 0:00:51]} 66. Rf8 {[%emt 0:00:09]} Kg5 {[%emt 0:00:18]} 67. Kb1 {[%emt 0:00:10]} Rh1+ {[%emt 0:02:13]} 68. Kb2 {[%emt 0:00:26]} Rh2+ {[%emt 0:00:04]} 69. Kc3 {[%emt 0:00:17]} Rh3+ {[%emt 0:00:07]} 70. Kc4 {[%emt 0:00:08]} Re3 {[%emt 0:01:30]} 71. Bc2 {[%emt 0:00:22]} Re7 {[%emt 0:00:15]} 72. Kd5 {[%emt 0:00:34]} Re1 {[%emt 0:02:24]} 73. Be4 {[%emt 0:00:16]} Kg4 {[%emt 0:00:11]} 74. Ke5 {[%emt 0:00:17]} Kg3 {[%emt 0:00:31]} 75. Rg8+ {[%emt 0:01:45]} Kf2 {[%emt 0:00:25]} 76. Kf4 {[%emt 0:00:16]} Ke2 {[%emt 0:01:50]} 77. Rg2+ {[%emt 0:00:24]} Kd1 {[%emt 0:00:25]} 78. Ra2 {[%emt 0:01:34]} Kc1 {[%emt 0:00:14]} 79. Ke5 {[%emt 0:00:37]} Rd1 {[%emt 0:00:37]} 80. Kf4 {[%emt 0:01:12]} Rd2 {[%emt 0:01:56]} 81. Ra3 $14 {[%emt 0:00:40]} Kb2 {[%emt 0:00:26]} 82. Rh3 {[%emt 0:00:11]} Rd8 {[%emt 0:00:29]} 83. Ke5 {[%emt 0:00:49]} Re8+ {[%emt 0:00:30]} 84. Kd4 {[%emt 0:00:00]} Rg8 {[%emt 0:01:37]} 85. Rh2+ {[%emt 0:00:39]} Ka3 {[%emt 0:00:41]} 86. Bd3 {[%emt 0:00:38]} Rg4+ {[%emt 0:01:32]} 87. Kc3 {[%emt 0:00:11]} Rb4 {[%emt 0:01:19]} 88. Bc4 {[%emt 0:00:36]} Rb3+ {[%emt 0:00:03]} 89. Kd4 {[%emt 0:00:42]} Rb2 {[%emt 0:02:15]} 90. Rh6 {[%emt 0:00:50]} Rb8 {[%emt 0:00:15]} 91. Rh1 {[%emt 0:01:09]} Kb2 {[%emt 0:01:36]} 92. Rh2+ {[%emt 0:00:25]} Ka1 $2 {[%emt 0:00:30]} (92... Kc1 $14) 93. Kc3 {[%emt 0:00:26]} Rb2 $1 {[%emt 0:00:03]} 94. Rh1+ {[%emt 0:00:53]} Rb1 {[%emt 0:00:09]} 95. Rh8 {[%emt 0:00:20]} Rc1+ {[%emt 0:00:36]} 96. Kb3 {[%emt 0:00:15]} Rb1+ {[%emt 0:00:54]} 97. Ka3 {[%emt 0:00:17]} Rb2 {[%emt 0:01:02]} 98. Bd3 {[%emt 0:00:49]} (98. Rh1+ $14 Rb1 99. Rh3) 98... Rb3+ {[%emt 0:00:30]} 1/2-1/2

[Event "Krakow Championship-B 2022"]
[Site "Krakow"]
[Date "2022.06.27"]
[Round "4.10"]
[White "Cichon, Bartlomiej"]
[Black "Klementys, Jerzy"]
[Result "1-0"]
[ECO "B90"]
[WhiteElo "1895"]
[BlackElo "1614"]
[Annotator "NA RC"]
[PlyCount "59"]
[EventDate "2022.06.25"]
[EventType "swiss"]
[EventCountry "POL"]
[SourceTitle "playchess.com"]
[Source "ChessBase"]
[SourceQuality "1"]
[TimeControl "40/5400+30:1800+30"]

1. e4 {[%emt 0:00:04]} c5 {[%emt 0:00:01]} 2. Nf3 {[%emt 0:00:07]} d6 {[%emt 0:00:05]} 3. d4 {[%emt 0:00:03]} cxd4 {[%emt 0:00:03]} 4. Nxd4 {[%emt 0:00:06]} Nf6 {[%emt 0:00:07]} 5. Nc3 {[%emt 0:00:04]} a6 {[%emt 0:00:20]} 6. h3 {[%emt 0:00:06]} e5 {[%emt 0:00:05]} 7. Nde2 {[%emt 0:00:03]} h5 {[%emt 0:00:17]} 8. g3 {[%emt 0:00:12]} Be6 {[%emt 0:00:18]} 9. Bg2 {[%emt 0:00:42]} Qc7 {[%emt 0:00:10]} 10. Be3 {[%emt 0:02:15]} Nbd7 {[%emt 0:01:16]} 11. O-O {[%emt 0:07:26]} b5 {[%emt 0:04:21]} 12. Qd2 {[%emt 0:06:33]} Nb6 {[%emt 0:00:28]} 13. b3 {[%emt 0:00:15]} Rc8 {[%emt 0:01:12]} 14. Rac1 {[%emt 0:01:34]} Be7 {[%emt 0:00:24]} 15. Kh1 {[%emt 0:08:25]} O-O {[%emt 0:01:52]} 16. Nd5 {[%emt 0:13:14]} Nbxd5 {[%emt 0:04:38]} 17. exd5 {[%emt 0:00:19]} Bf5 {[%emt 0:00:34]} 18. c4 {[%emt 0:02:06]} Qd7 {[%emt 0:03:50]} 19. cxb5 {[%emt 0:09:49]} axb5 {[%emt 0:00:19]} 20. Kh2 {[%emt 0:01:30]} Qb7 {[%emt 0:14:17]} 21. a4 {[%emt 0:19:29]} bxa4 {[%emt 0:02:07]} 22. bxa4 {[%emt 0:02:50]} Qa6 {[%emt 0:05:22]} 23. Nc3 {[%emt 0:05:49]} Bd8 {[%emt 0:01:58]} 24. Nb5 {[%emt 0:01:21]} Ba5 {[%emt 0:00:27]} 25. Qb2 {[%emt 0:02:50]} Bd7 {[%emt 0:04:01]} 26. Rxc8 {[%emt 0:04:13]} Rxc8 {[%emt 0:00:40]} 27. Rd1 {[%emt 0:00:35]} Rc4 {[%emt 0:16:56]} 28. Bf1 {[%emt 0:03:57]} Rxa4 {[%emt 0:10:07]} 29. Na7 {[%emt 0:01:59]} Bc3 {[%emt 0:09:46]} 30. Qb8+ {[%emt 0:00:51]} 1-0

[Event "Krakow Championship-B 2022"]
[Site "Krakow"]
[Date "2022.06.27"]
[Round "4.11"]
[White "Radzimski, Antoni"]
[Black "Kulesza, Andrzej"]
[Result "0-1"]
[ECO "B90"]
[WhiteElo "1612"]
[BlackElo "1998"]
[Annotator "RC"]
[PlyCount "152"]
[EventDate "2022.06.25"]
[EventType "swiss"]
[EventCountry "POL"]
[SourceTitle "playchess.com"]
[Source "ChessBase"]
[SourceQuality "1"]
[TimeControl "40/5400+30:1800+30"]

1. e4 c5 {[%emt 0:01:08]} 2. Nf3 {[%emt 0:00:23]} d6 {[%emt 0:00:59]} 3. d4 {[%emt 0:00:38]} cxd4 {[%emt 0:01:24]} 4. Nxd4 {[%emt 0:01:02]} Nf6 {[%emt 0:01:56]} 5. Nc3 {[%emt 0:01:14]} a6 6. h4 {[%emt 0:02:11]} e5 {[%emt 0:02:20]} 7. Nb3 {[%emt 0:01:54]} Be7 {[%emt 0:00:54]} 8. h5 {[%emt 0:06:36]} h6 {[%emt 0:03:17]} 9. Be2 {[%emt 0:03:16]} b5 {[%emt 0:02:28]} 10. Be3 {[%emt 0:03:48]} Bb7 {[%emt 0:01:14]} 11. Nd5 {[%emt 0:03:14]} Nxd5 {[%emt 0:03:07]} 12. exd5 {[%emt 0:01:31]} Nd7 {[%emt 0:00:39]} 13. a4 {[%emt 0:06:52]} b4 {[%emt 0:03:15]} 14. Qd3 {[%emt 0:04:13]} O-O {[%emt 0:04:23]} 15. O-O-O {[%emt 0:05:46]} f5 {[%emt 0:06:19]} 16. f3 {[%emt 0:06:50]} a5 {[%emt 0:05:04]} 17. Kb1 {[%emt 0:05:21]} Qe8 {[%emt 0:10:01]} 18. Qd2 {[%emt 0:05:26]} Nf6 {[%emt 0:04:44]} 19. Bb5 Qc8 {[%emt 0:05:31]} 20. Qe2 {[%emt 0:07:05]} Kh8 {[%emt 0:01:06]} 21. Bc4 {[%emt 0:07:16]} Qd7 {[%emt 0:03:42]} 22. f4 {[%emt 0:02:06]} e4 {[%emt 0:04:31]} 23. Bb5 {[%emt 0:01:51]} Qc8 {[%emt 0:01:55]} 24. Bc4 {[%emt 0:00:21]} Bd8 {[%emt 0:00:27]} 25. Bd4 {[%emt 0:01:29]} Ng4 {[%emt 0:01:06]} 26. Rhe1 {[%emt 0:00:52]} Rf7 {[%emt 0:00:58]} 27. Bb5 Kh7 {[%emt 0:05:38]} 28. Be3 {[%emt 0:04:54]} Nf6 {[%emt 0:00:23]} 29. Rd2 {[%emt 0:00:25]} Bc7 {[%emt 0:03:18]} 30. Red1 {[%emt 0:00:21]} Re7 {[%emt 0:00:12]} 31. Ka2 {[%emt 0:01:28]} Qg8 {[%emt 0:00:19]} 32. Kb1 {[%emt 0:02:00]} Qf7 {[%emt 0:00:14]} 33. Nd4 {[%emt 0:00:37]} Ng4 {[%emt 0:05:00]} 34. Nc6 {[%emt 0:00:48]} Ree8 {[%emt 0:00:23]} 35. Rh1 {[%emt 0:00:31]} Rec8 {[%emt 0:00:38]} 36. Rh4 {[%emt 0:02:29]} Nf6 {[%emt 0:01:10]} 37. Bc4 Nd7 {[%emt 0:02:17]} 38. Rh1 {[%emt 0:04:12]} Bb6 {[%emt 0:00:18]} 39. Bb5 {[%emt 0:00:55]} Bxe3 {[%emt 0:00:32]} 40. Qxe3 {[%emt 0:00:06]} Nf6 {[%emt 0:01:01]} 41. Qb6 {[%emt 0:35:33]} e3 {[%emt 0:33:27]} 42. Qxe3 {[%emt 0:02:11]} Nxd5 {[%emt 0:00:36]} 43. Qb3 {[%emt 0:01:38]} Rxc6 {[%emt 0:00:58]} 44. Bxc6 {[%emt 0:02:36]} Bxc6 {[%emt 0:00:06]} 45. Rhd1 {[%emt 0:00:10]} Qxh5 {[%emt 0:01:06]} 46. Rxd5 {[%emt 0:00:20]} Bxd5 {[%emt 0:00:05]} 47. Qxd5 {[%emt 0:00:16]} Re8 {[%emt 0:01:15]} 48. Qxd6 {[%emt 0:00:00]} Qg4 {[%emt 0:00:00]} 49. Qd7 {[%emt 0:00:00]} Re2 {[%emt 0:00:00]} 50. g3 {[%emt 0:00:00]} Re7 {[%emt 0:00:00]} 51. Qd5 {[%emt 0:00:00]} Re3 {[%emt 0:00:00]} 52. Rg1 {[%emt 0:00:00]} h5 {[%emt 0:00:00]} 53. Qh1 {[%emt 0:00:00]} Rf3 {[%emt 0:00:00]} 54. Qh2 {[%emt 0:00:00]} Kh6 {[%emt 0:00:00]} 55. Kc1 {[%emt 0:00:00]} Re3 {[%emt 0:00:00]} 56. Kb1 {[%emt 0:00:00]} Re2 {[%emt 0:00:00]} 57. Qh1 {[%emt 0:00:00]} Rf2 {[%emt 0:00:00]} 58. Qc6+ {[%emt 0:00:00]} Kh7 {[%emt 0:00:00]} 59. Qh1 {[%emt 0:00:00]} Qe2 {[%emt 0:00:00]} 60. Qc6 {[%emt 0:00:00]} b3 {[%emt 0:00:00]} 61. Rc1 {[%emt 0:00:00]} Rg2 {[%emt 0:00:00]} 62. Qc3 {[%emt 0:00:00]} bxc2+ {[%emt 0:00:00]} 63. Qxc2 {[%emt 0:00:00]} Qxc2+ {[%emt 0:00:00]} 64. Rxc2 {[%emt 0:00:00]} Rxg3 {[%emt 0:00:00]} 65. b4 {[%emt 0:00:00]} axb4 {[%emt 0:00:00]} 66. a5 {[%emt 0:00:00]} Rd3 {[%emt 0:00:00]} 67. a6 {[%emt 0:00:00]} Rd7 {[%emt 0:00:00]} 68. Ra2 {[%emt 0:00:00]} Ra7 {[%emt 0:00:00]} 69. Kb2 {[%emt 0:00:00]} h4 {[%emt 0:00:00]} 70. Kb3 {[%emt 0:00:00]} Kg6 {[%emt 0:00:03]} 71. Kxb4 {[%emt 0:00:00]} Kh5 {[%emt 0:00:05]} 72. Kb5 {[%emt 0:00:00]} Kg4 {[%emt 0:00:25]} 73. Kb6 {[%emt 0:00:00]} Rxa6+ {[%emt 0:00:31]} 74. Kxa6 {[%emt 0:00:00]} h3 {[%emt 0:00:23]} 75. Kb6 {[%emt 0:00:01]} Kxf4 {[%emt 0:00:21]} 76. Kc5 {[%emt 0:00:04]} g5 {[%emt 0:00:16]} 0-1